bitfinex/quotes_ETHUSD_20250507
["timestamp","ask_amount","ask_price","bid_price","bid_amount"]
[1746656074102,5.51389501,1813.6,1813.2,4.50324591]
[1746656074103,5.51480725,1813.3,1813.2,4.50324591]
[1746656074507,5.51480725,1813.3,1813.2,5.05324591]
[1746656074915,5.5151114,1813.2,1813.1,3.6643417]
[1746656075101,5.5151114,1813.2,1813.1,6.6643417]
[1746656075524,5.66597253,1813.2,1813.1,6.6643417]
[1746656075727,0.15086113,1813.2,1813.1,7.2143417]
[1746656075935,0.7686,1813.5,1813.1,7.26949016]
[1746656075936,5.51507521,1813.3,1813.1,7.26949016]
[1746656076236,5.66597253,1813.2,1813.1,7.26949016]
[1746656076435,5.66597253,1813.2,1813.1,7.2143417]
[1746656076604,5.66597253,1813.2,1813.1,3.55]
[1746656076802,0.15086113,1813.2,1813.1,3.55]
[1746656077419,0.13828937,1813.2,1813.1,3.55]
[1746656078044,0.13828937,1813.2,1813.1,4.27559381]
[1746656078246,5.51401918,1813.6,1813.3,0.55]
[1746656078434,0.13828937,1813.5,1813.4,3.65078829]
[1746656078743,5.51419906,1813.5,1813.4,6.65078829]
[1746656078944,5.51401918,1813.6,1813.4,6.65078829]
[1746656079142,5.639233,1813.5,1813.4,6.65078829]
[1746656079437,0.12503394,1813.5,1813.4,6.65078829]
[1746656079847,0.12503394,1813.5,1813.4,3.0]
[1746656080625,5.51372078,1813.7,1813.4,3.0]
[1746656080824,0.12503394,1813.6,1813.4,3.0]
[1746656081143,11.79006498,1813.9,1813.5,9.92334118]
[1746656081347,6.27685262,1813.9,1813.5,9.92334118]
[1746656081753,6.27685262,1813.9,1813.7,3.0]
[1746656082850,5.51315262,1813.9,1813.7,3.0]
[1746656083223,5.51328702,1813.8,1813.7,3.0]
[1746656083424,5.513591,1813.7,1813.6,6.46821893]
[1746656084562,5.51345162,1813.8,1813.5,3.46821893]
[1746656084717,5.51371264,1813.7,1813.5,3.46821893]
[1746656084916,5.51371264,1813.7,1813.5,4.37200491]
[1746656085125,0.12740995,1813.6,1813.5,4.37200491]
[1746656085530,11.02753108,1813.7,1813.5,4.37200491]
[1746656085733,5.64130496,1813.6,1813.5,3.46821893]
[1746656086020,0.12740995,1813.6,1813.5,3.46821893]
[1746656086222,5.51389501,1813.6,1813.5,3.46821893]
[1746656086419,5.64130496,1813.6,1813.5,3.46821893]
[1746656087458,5.51450314,1813.4,1813.3,3.46821893]
[1746656087820,5.64191309,1813.4,1813.3,3.46821893]
[1746656088026,0.12740995,1813.4,1813.3,3.46821893]
[1746656088761,5.64191309,1813.4,1813.3,3.46821893]
[1746656089062,5.51490032,1813.3,1813.1,4.19381274]
[1746656089254,0.12702693,1813.2,1813.1,7.19381274]
[1746656089440,0.12702693,1813.2,1813.1,7.74381274]
[1746656089851,5.64213833,1813.2,1813.1,7.74381274]
[1746656090063,0.12702693,1813.2,1813.1,7.74381274]
[1746656091365,5.64213833,1813.2,1813.1,3.0]
[1746656091523,5.64213833,1813.2,1813.0,3.46821893]
[1746656091724,5.64213833,1813.2,1813.0,6.46821893]
[1746656092158,11.15752894,1813.2,1813.0,6.46821893]
[1746656092362,5.64213833,1813.2,1813.0,6.46821893]
[1746656093024,0.12702693,1813.2,1813.0,6.46821893]
[1746656093361,0.12702693,1813.2,1813.0,8.32283281]
[1746656093659,5.64221733,1813.2,1813.0,8.32283281]
[1746656093962,5.64221733,1813.2,1813.0,6.46821893]
[1746656094863,0.7702,1814.9,1814.0,5.5125484]
[1746656095067,5.51146384,1814.4,1814.3,3.46821893]
[1746656095240,5.51128142,1814.5,1814.2,0.55]
[1746656095241,6.28152223,1814.5,1814.2,0.55]
[1746656095594,5.51149038,1814.4,1814.2,0.55]
[1746656096094,6.28152223,1814.5,1814.2,0.55]
[1746656096095,6.28154478,1814.5,1814.2,0.55]
[1746656096303,5.51147122,1814.4,1814.2,0.55]
[1746656097842,5.51207143,1814.2,1814.1,4.75206488]
[1746656098048,5.51207143,1814.2,1814.1,0.51034595]
[1746656098670,5.51188899,1814.3,1814.1,0.51034595]
[1746656098871,5.51207143,1814.2,1814.0,3.46821893]
[1746656100282,0.62815448,1814.4,1813.9,1.02101944]
[1746656100283,5.51267916,1814.0,1813.9,1.02101944]
[1746656100600,5.50839843,1815.5,1814.9,5.50978172]
[1746656100780,5.50675219,1816.0,1815.1,3.46821893]
[1746656100781,5.50786348,1815.6,1815.1,3.46821893]
[1746656100948,5.50855933,1815.4,1815.1,3.46821893]
[1746656101152,5.50832252,1815.5,1815.1,3.46821893]
[1746656101376,5.50812448,1815.5,1815.1,3.46821893]
[1746656101575,6.05927675,1815.4,1815.1,3.46821893]
[1746656101753,0.55081245,1815.4,1815.0,0.40689592]
[1746656101953,5.50926603,1815.2,1814.9,3.55]
[1746656102986,11.01854654,1815.2,1814.9,3.55]
[1746656103293,5.50926603,1815.2,1814.9,3.55]
[1746656103666,0.7736,1815.3,1814.6,7.3731]
[1746656103864,5.50955205,1815.1,1814.7,0.55]
[1746656104068,6.61142513,1815.1,1814.7,3.55]
[1746656104387,5.62512716,1815.0,1814.7,3.96922484]
[1746656104874,5.50996625,1814.9,1814.7,3.96922484]
[1746656105073,0.12977817,1814.8,1814.7,3.96922484]
[1746656105253,5.50983659,1815.0,1814.7,3.96922484]
[1746656105451,0.12977817,1814.9,1814.7,3.96922484]
[1746656106197,5.63983805,1814.9,1814.7,3.0]
[1746656106580,5.51024906,1814.8,1814.7,3.0]
[1746656106791,5.51059207,1814.7,1814.5,3.65419182]
[1746656107092,12.23187078,1815.0,1814.6,5.51082027]
[1746656107392,5.50955994,1815.1,1814.7,6.11554124]
[1746656107695,5.50990951,1815.0,1814.7,0.55]
[1746656108296,5.50999388,1814.9,1814.7,0.55]
[1746656108494,5.5096523,1815.0,1814.7,0.55]
[1746656108875,5.51001737,1814.9,1814.7,0.55]
[1746656109078,5.51001737,1814.9,1814.6,3.0]
[1746656109278,5.51027609,1814.8,1814.6,3.0]
[1746656109603,5.51001737,1814.9,1814.6,3.05510296]
[1746656110912,5.51001737,1814.9,1814.6,8.56593454]
[1746656111069,6.61169357,1815.0,1814.6,8.56593454]
[1746656111386,5.5099804,1814.9,1814.6,8.56593454]
[1746656111576,5.50996216,1814.9,1814.6,8.56593454]
[1746656112505,5.50996216,1814.9,1814.6,3.05510296]
[1746656112802,6.61169357,1815.0,1814.6,3.0]
[1746656112803,5.51029291,1814.8,1814.6,3.0]
[1746656113395,5.51029291,1814.8,1814.6,3.55]
[1746656115396,5.51010307,1814.9,1814.6,3.55]
[1746656115595,11.02032038,1814.9,1814.6,3.55]
[1746656115819,5.51025148,1814.8,1814.6,3.55]
[1746656116700,5.51011116,1814.9,1814.6,3.55]
[1746656116881,11.02029002,1814.9,1814.6,3.55]
[1746656117917,5.51035929,1814.8,1814.6,3.0]
[1746656119421,5.51085638,1814.6,1814.5,0.4074073]
[1746656119728,5.51130624,1814.5,1814.3,3.65419182]
[1746656120219,5.51146384,1814.4,1814.3,7.07030931]
[1746656120411,5.51137752,1814.5,1814.3,6.65419182]
[1746656120722,5.63794892,1814.4,1814.3,3.0]
[1746656121224,5.5125578,1814.1,1813.8,6.708]
[1746656121412,5.5125578,1814.1,1813.9,3.0]
[1746656121729,0.12388041,1814.0,1813.9,7.01721764]
[1746656122023,5.63655957,1814.0,1813.9,3.46721764]
[1746656123442,0.12388041,1814.0,1813.9,3.46721764]
[1746656124033,2.04888663,1814.0,1813.6,0.41029459]
[1746656124215,2.04888663,1814.0,1813.5,4.4496417]
[1746656124216,5.51331176,1813.8,1813.5,4.25251764]
[1746656124420,5.51331176,1813.8,1813.5,3.46721764]
[1746656124421,5.51361625,1813.7,1813.5,3.46721764]
[1746656124592,5.63351116,1813.7,1813.5,3.46721764]
[1746656125099,0.11989491,1813.7,1813.5,3.46721764]
[1746656125488,5.63368802,1813.7,1813.5,3.46721764]
[1746656126089,0.11989491,1813.7,1813.5,3.46721764]
[1746656126851,0.11989491,1813.7,1813.6,0.55]
[1746656126992,0.11989491,1813.7,1813.6,9.93213223]
[1746656127193,11.02518002,1814.1,1813.8,0.55]
[1746656127405,5.51267916,1814.0,1813.9,3.46721764]
[1746656128211,5.51252968,1814.1,1813.9,3.46721764]
[1746656128450,5.51266783,1814.1,1813.9,3.46721764]
[1746656128829,5.51267916,1814.0,1813.9,3.46721764]
[1746656130657,5.51298307,1813.9,1813.8,0.55]
[1746656132764,5.51298307,1813.9,1813.3,6.7689]
[1746656132765,0.7932,1813.9,1813.3,6.7689]
[1746656132922,5.51340546,1813.8,1813.7,3.46721764]
[1746656135195,5.51391035,1813.6,1813.5,4.01721764]
[1746656135353,5.51391035,1813.6,1813.5,3.46721764]
[1746656135557,5.74139414,1813.6,1813.5,3.46721764]
[1746656135753,0.22748379,1813.6,1813.5,4.01721764]
[1746656135994,0.22748379,1813.6,1813.5,10.5397102]
[1746656136195,5.51314663,1813.9,1813.6,0.55]
[1746656136394,5.51314663,1813.9,1813.7,3.46721764]
[1746656136558,5.51328702,1813.8,1813.6,0.55]
[1746656137098,5.513591,1813.7,1813.6,0.55]
[1746656137590,11.02743301,1813.7,1813.5,3.46721764]
[1746656137795,1.8959433,1813.7,1813.3,4.23611764]
[1746656137993,5.51429928,1813.5,1813.1,15.91342035]
[1746656138202,5.51429928,1813.5,1813.2,6.06510643]
[1746656138901,5.51429928,1813.5,1813.3,3.46721764]
[1746656139067,5.51389501,1813.6,1813.3,3.46721764]
[1746656139863,11.02802646,1813.6,1813.3,3.46721764]
[1746656140214,5.51389501,1813.6,1813.3,3.46721764]
[1746656140508,11.0280414,1813.6,1813.3,3.46721764]
[1746656140720,5.51389501,1813.6,1813.3,3.46721764]
[1746656141812,11.02806071,1813.6,1813.3,3.46721764]
[1746656142115,5.51389501,1813.6,1813.3,3.46721764]
[1746656143781,5.51377409,1813.7,1813.3,9.98105609]
[1746656144107,5.51377409,1813.7,1813.5,0.55]
[1746656144305,5.51377409,1813.7,1813.5,4.01721764]
[1746656144919,5.51340175,1813.8,1813.5,10.30843663]
[1746656145086,5.51339833,1813.8,1813.5,10.30843663]
[1746656145600,5.51339833,1813.8,1813.5,4.79431764]
[1746656146215,5.51339833,1813.8,1813.5,10.30839107]
[1746656146520,5.51339833,1813.8,1813.5,4.79431764]
[1746656146689,5.51361184,1813.7,1813.5,4.79431764]
[1746656146888,5.51339833,1813.8,1813.5,4.79431764]
[1746656147599,11.02693007,1813.8,1813.5,4.79431764]
[1746656148022,11.02695349,1813.8,1813.5,4.79431764]
[1746656148318,5.51339833,1813.8,1813.5,4.79431764]
[1746656148536,6.27312303,1814.1,1813.4,0.05513724]
[1746656148702,5.51413292,1813.6,1813.4,1.06310281]
[1746656149930,5.51376345,1813.7,1813.4,1.06310281]
[1746656150225,5.51376345,1813.7,1813.4,1.57669813]
[1746656150426,11.02758902,1813.7,1813.4,1.57669813]
[1746656150634,5.51419906,1813.5,1813.4,1.02669813]
[1746656151225,5.74030227,1813.5,1813.4,0.51359532]
[1746656151413,11.25478004,1813.5,1813.3,3.46721764]
[1746656151612,5.74030227,1813.5,1813.3,3.46721764]
[1746656152396,11.25474585,1813.5,1813.3,3.46721764]
[1746656152596,5.74030227,1813.5,1813.3,3.46721764]
[1746656154349,5.51450314,1813.4,1813.2,0.55]
[1746656154943,0.22587312,1813.3,1813.2,0.55]
[1746656155121,5.74078787,1813.3,1813.1,3.46721764]
[1746656155294,0.22587312,1813.3,1813.1,3.46721764]
[1746656155792,11.02942646,1813.4,1813.1,3.46721764]
[1746656156005,0.22587312,1813.2,1813.1,4.01721764]
[1746656156205,11.0294172,1813.4,1813.1,4.53162706]
[1746656156694,0.22288164,1813.3,1813.1,4.53162706]
[1746656157021,0.22288164,1813.3,1813.1,4.01721764]
[1746656157229,11.0294172,1813.4,1813.1,4.01721764]
[1746656157428,0.22288164,1813.2,1813.1,4.01721764]
[1746656157632,11.0294172,1813.4,1813.1,4.53155307]
[1746656157807,0.22288164,1813.2,1813.1,4.53155307]
[1746656158008,5.51486842,1813.3,1813.1,4.53155307]
[1746656158204,0.22295836,1813.2,1813.1,4.53155307]
[1746656159535,0.22295836,1813.2,1813.1,5.04595802]
[1746656160547,6.31185244,1813.2,1813.1,1.02874038]
[1746656160711,6.31185244,1813.2,1813.1,0.51440495]
[1746656160900,6.31185244,1813.2,1812.9,0.51433543]
[1746656160901,5.51548667,1813.1,1812.9,1.02874038]
[1746656161338,0.2227282,1813.0,1812.9,1.02874038]
[1746656161521,0.2227282,1813.0,1812.9,0.51440495]
[1746656161723,0.2227282,1813.0,1812.9,2.38919169]
[1746656162241,0.2227282,1813.0,1812.9,2.90378009]
[1746656162727,0.2227282,1813.0,1812.9,9.81181033]
[1746656162930,5.51498269,1813.3,1813.0,0.55]
[1746656163103,5.51498269,1813.3,1812.9,15.3829938]
[1746656163104,5.51498269,1813.3,1813.2,1.87478674]
[1746656163731,5.51511395,1813.2,1813.0,4.53482466]
[1746656164647,5.51511395,1813.2,1813.0,5.04908818]
[1746656165104,5.51511395,1813.2,1813.0,5.04902448]
[1746656165502,0.22104009,1813.1,1813.0,5.04902448]
[1746656165705,5.51498727,1813.3,1813.0,5.04902448]
[1746656165945,0.21950579,1813.2,1813.0,5.04902448]
[1746656166144,0.21950579,1813.2,1813.1,5.51541558]
[1746656166312,0.21950579,1813.2,1813.1,6.83711558]
[1746656166640,5.51455883,1813.4,1813.1,7.3513154]
[1746656166835,0.21958253,1813.2,1813.1,2.14436672]
[1746656167144,0.21958253,1813.2,1813.1,0.8584669]
[1746656167528,0.21958253,1813.2,1813.1,0.55]
[1746656167733,5.5146464,1813.4,1813.1,0.55]
[1746656167930,0.21981272,1813.3,1813.1,0.55]
[1746656168122,5.5146464,1813.4,1813.1,7.09379784]
[1746656168439,0.21981272,1813.3,1813.1,7.09379784]
[1746656168641,0.21981272,1813.3,1813.1,6.57960343]
[1746656168836,5.5146464,1813.4,1813.1,6.57960343]
[1746656169150,6.31484184,1813.6,1813.2,9.53563162]
[1746656169315,0.22019636,1813.3,1813.2,4.02057157]
[1746656169519,5.51435484,1813.5,1813.2,4.53452717]
[1746656169721,0.22019636,1813.4,1813.2,4.53452717]
[1746656169921,0.22019636,1813.4,1813.2,10.04963647]
[1746656170544,0.22019636,1813.4,1813.2,9.53568087]
[1746656170756,0.22019636,1813.4,1813.2,4.02057157]
[1746656171247,0.22019636,1813.4,1813.2,4.53439671]
[1746656171644,0.22019636,1813.4,1813.2,5.04819211]
[1746656171941,0.22019636,1813.4,1813.2,10.56315351]
[1746656172143,11.02817496,1813.6,1813.3,1.2854954]
[1746656173059,5.51421285,1813.5,1813.3,1.2854954]
[1746656173446,5.51421285,1813.5,1813.3,0.5137954]
[1746656175857,6.26960314,1813.4,1813.3,0.5137954]
[1746656176159,5.51492277,1813.3,1813.0,3.6643417]
[1746656176659,11.02995863,1813.3,1813.0,3.6643417]
[1746656176859,5.51492277,1813.3,1813.0,3.6643417]
[1746656177063,6.26977827,1813.4,1813.0,9.17991548]
[1746656177256,11.78450549,1813.4,1813.1,0.5139767]
[1746656177637,11.78450549,1813.4,1813.1,1.0280488]
[1746656178156,5.51495108,1813.3,1813.1,1.0280488]
[1746656178384,5.5151114,1813.2,1813.1,1.0280488]
[1746656178536,5.5151114,1813.2,1813.1,0.5140721]
[1746656179241,5.5151114,1813.2,1813.0,1.02838556]
[1746656179766,5.5151114,1813.2,1813.0,0.5140721]
[1746656179941,5.5151114,1813.2,1813.0,0.55]
[1746656180634,0.22050326,1813.1,1813.0,0.55]
[1746656181345,0.22050326,1813.1,1813.0,1.06431453]
[1746656182072,0.22050326,1813.1,1813.0,1.57863039]
[1746656183133,0.22050326,1813.1,1813.0,1.88713848]
[1746656183782,0.22050326,1813.1,1813.0,3.21191338]
[1746656183952,5.73591884,1813.1,1813.0,2.90340529]
[1746656184280,5.73591884,1813.1,1813.0,1.02863039]
[1746656184481,5.5157198,1813.0,1812.9,6.33]
[1746656184640,5.5157198,1813.0,1812.8,9.0891166]
[1746656184975,5.73576263,1813.0,1812.9,0.51403668]
[1746656185376,5.51602404,1812.9,1812.8,5.5391166]
[1746656186097,5.73606687,1812.9,1812.8,5.5391166]
[1746656186595,5.73606687,1812.9,1812.8,1.8747749]
[1746656187597,0.22004283,1812.9,1812.8,7.94110323]
[1746656187903,0.22004283,1812.9,1812.8,8.73100323]
[1746656188094,6.26948758,1813.3,1812.9,6.06596827]
[1746656188268,5.5151604,1813.2,1813.1,1.8747749]
[1746656188478,6.26952381,1813.3,1813.1,1.8747749]
[1746656188678,11.78457967,1813.3,1813.1,1.8747749]
[1746656188885,6.26952381,1813.3,1813.1,1.8747749]
[1746656189061,11.78456767,1813.3,1813.1,1.8747749]
[1746656189800,5.5151114,1813.2,1813.0,0.5137166]
[1746656190004,5.51541558,1813.1,1813.0,0.5137166]
[1746656190892,5.5157198,1813.0,1812.9,2.3884915]
[1746656191305,5.5157198,1813.0,1812.9,2.90230901]
[1746656191865,5.5157198,1813.0,1812.9,2.38859241]
[1746656192065,5.51541558,1813.1,1812.9,2.38859241]
[1746656192298,5.51541558,1813.1,1812.9,1.8747749]
[1746656192703,5.5157198,1813.0,1812.9,1.8747749]
[1746656195332,5.51541558,1813.1,1812.9,1.8747749]
[1746656195623,0.21551504,1813.0,1812.9,1.8747749]
[1746656196228,5.73123484,1813.0,1812.9,1.8747749]
[1746656200541,5.51602404,1812.9,1812.8,0.51370211]
[1746656200917,5.73261367,1812.9,1812.8,0.51370211]
[1746656201091,5.73261367,1812.9,1812.8,1.02681146]
[1746656201837,0.21658963,1812.9,1812.8,1.02681146]
[1746656202824,5.73261367,1812.9,1812.8,1.02681146]
[1746656203436,0.21658963,1812.9,1812.8,0.51370211]
[1746656203650,0.21658963,1812.9,1812.7,1.8747749]
[1746656204103,0.21658963,1812.9,1812.8,1.02596805]
[1746656205533,0.21658963,1812.9,1812.8,7.41314881]
[1746656205736,5.515223,1813.2,1812.8,7.41314881]
[1746656205924,0.21605237,1812.9,1812.8,7.72093011]
[1746656206119,5.515223,1813.2,1812.8,9.59570501]
[1746656206322,0.21605237,1812.9,1812.8,9.59570501]
[1746656206835,5.51550554,1813.1,1812.8,9.59570501]
[1746656207041,0.21605237,1812.9,1812.8,9.28792371]
[1746656207209,5.5151114,1813.2,1812.8,0.51296795]
[1746656207528,5.73207641,1812.9,1812.8,0.51296795]
[1746656207711,5.51602404,1812.9,1812.8,0.51296795]
[1746656207915,5.7319229,1812.9,1812.8,0.51296795]
[1746656208113,5.7319229,1812.9,1812.7,0.51296795]
[1746656208840,5.7319229,1812.9,1812.7,0.82085081]
[1746656209056,5.7319229,1812.9,1812.8,0.5131382]
[1746656210463,6.93356923,1812.9,1812.8,0.5131382]
[1746656210665,5.51632833,1812.8,1812.7,0.30788286]
[1746656211340,5.73222719,1812.8,1812.7,0.30788286]
[1746656211665,5.73222719,1812.8,1812.6,1.8747749]
[1746656211871,11.24885647,1812.8,1812.6,1.8747749]
[1746656212242,5.51663264,1812.7,1812.6,1.8747749]
[1746656212444,5.51663264,1812.7,1812.6,2.38780689]
[1746656212639,5.7325315,1812.7,1812.6,2.38780689]
[1746656214587,5.7325315,1812.7,1812.5,0.51303199]
[1746656214588,5.51693699,1812.6,1812.5,0.51303199]
[1746656214876,6.52611685,1812.6,1812.5,0.51303199]
[1746656215297,5.51724137,1812.5,1812.4,3.6643417]
[1746656215645,5.72907173,1812.5,1812.4,3.6643417]
[1746656216207,5.72907173,1812.5,1812.3,1.8747749]
[1746656216556,0.21183036,1812.5,1812.3,1.8747749]
[1746656217300,5.72914363,1812.5,1812.3,1.8747749]
[1746656222611,5.51754579,1812.4,1812.2,2.89911627]
[1746656222768,5.51785024,1812.3,1812.2,1.02434137]
[1746656222964,5.71599496,1812.3,1812.1,11.1987749]
[1746656223194,5.71599496,1812.3,1812.1,8.1987749]
[1746656223416,5.51815472,1812.2,1812.1,8.1987749]
[1746656223828,0.19814472,1812.2,1812.1,8.1987749]
[1746656224195,5.51786774,1812.3,1812.1,8.1987749]
[1746656224493,0.19814472,1812.2,1812.1,8.1987749]
[1746656225109,0.19814472,1812.2,1812.1,1.8747749]
[1746656226066,0.19814472,1812.2,1812.1,8.23768357]
[1746656226322,5.51755976,1812.4,1812.2,0.55]
[1746656226515,5.51755976,1812.4,1812.3,1.8747749]
[1746656227027,5.51739868,1812.5,1812.3,1.8747749]
[1746656228429,0.19729992,1812.4,1812.3,1.8747749]
[1746656230300,5.71484571,1812.4,1812.3,1.8747749]
[1746656230496,6.83807015,1812.4,1812.3,1.8747749]
[1746656230715,5.51815472,1812.2,1812.1,0.51151653]
[1746656231126,5.51815472,1812.2,1812.0,1.8747749]
[1746656231434,5.71545464,1812.2,1812.0,1.8747749]
[1746656232730,11.23384574,1812.2,1812.0,1.8747749]
[1746656232906,5.71545464,1812.2,1812.0,1.8747749]
[1746656233511,5.51845924,1812.1,1812.0,1.8747749]
[1746656233714,5.71353166,1812.1,1812.0,1.8747749]
[1746656234147,0.19507242,1812.1,1812.0,1.8747749]
[1746656234524,5.51803847,1812.3,1812.0,2.6846749]
[1746656234855,5.51770605,1812.4,1812.2,1.8747749]
[1746656235029,11.03553415,1812.4,1812.2,1.8747749]
[1746656235382,5.51785024,1812.3,1812.2,1.8747749]
[1746656237743,5.51845924,1812.1,1812.0,4.8747749]
[1746656239236,5.51845924,1812.1,1812.0,1.8747749]
[1746656240473,0.19330568,1812.1,1812.0,1.8747749]
[1746656240658,6.306101,1812.2,1812.0,1.8747749]
[1746656240864,0.19330568,1812.1,1812.0,1.8747749]
[1746656241369,6.306101,1812.2,1812.0,1.8747749]
[1746656241572,0.19330568,1812.1,1812.0,1.8747749]
[1746656241868,6.306101,1812.2,1812.0,1.8747749]
[1746656242070,0.19330568,1812.1,1812.0,1.8747749]
[1746656242466,11.82448677,1812.2,1812.0,1.8747749]
[1746656242671,5.71176492,1812.1,1812.0,1.8747749]
[1746656244843,5.71176492,1812.1,1812.0,2.38713941]
[1746656245386,0.19330568,1812.1,1812.0,2.38713941]
[1746656245786,6.306101,1812.2,1812.0,2.38713941]
[1746656245985,0.19238378,1812.1,1812.0,2.38713941]
[1746656246366,5.51845924,1812.1,1812.0,2.38713941]
[1746656246687,0.19238378,1812.1,1812.0,2.38713941]
[1746656247579,11.82448529,1812.2,1812.0,2.38713941]
[1746656247789,0.19238378,1812.1,1812.0,2.38713941]
[1746656248092,11.82448413,1812.2,1812.0,2.38713941]
[1746656248277,0.19238378,1812.1,1812.0,2.38713941]
[1746656248586,11.82448413,1812.2,1812.0,2.38713941]
[1746656248788,5.71084302,1812.1,1812.0,0.51236451]
[1746656248987,5.51876379,1812.0,1811.9,7.17670621]
[1746656249355,5.7112244,1812.0,1811.9,7.68920703]
[1746656250190,5.7112244,1812.0,1811.9,4.02486533]
[1746656250755,5.7112244,1812.0,1811.9,1.02486533]
[1746656251058,6.83419276,1812.0,1811.9,1.02486533]
[1746656251258,6.83419276,1812.0,1811.9,0.51250082]
[1746656251986,5.51906838,1811.9,1811.8,0.51255956]
[1746656252195,5.51906838,1811.9,1811.7,4.8747749]
[1746656252558,0.19246061,1811.8,1811.7,4.8747749]
[1746656252955,5.51906838,1811.9,1811.7,4.8747749]
[1746656253155,0.19246061,1811.8,1811.7,4.8747749]
[1746656253498,5.51906838,1811.9,1811.7,5.38701537]
[1746656253703,0.19246061,1811.8,1811.7,5.38701537]
[1746656253903,0.19246061,1811.8,1811.7,5.89937486]
[1746656254103,5.51906838,1811.9,1811.7,5.89937486]
[1746656254506,0.19246061,1811.8,1811.7,5.38713439]
[1746656254904,5.51906838,1811.9,1811.7,5.38713439]
[1746656255082,0.19246061,1811.8,1811.7,5.38713439]
[1746656255506,5.51906838,1811.9,1811.7,5.38713439]
[1746656255695,0.19246061,1811.8,1811.7,5.38713439]
[1746656256091,5.51906838,1811.9,1811.7,5.38713439]
[1746656256304,5.7118336,1811.8,1811.7,5.38713439]
[1746656256913,5.7118336,1811.8,1811.7,4.8747749]
[1746656260609,0.19246061,1811.8,1811.7,5.38742667]
[1746656260777,0.19246061,1811.8,1811.7,2.38742667]
[1746656260982,5.5190787,1811.9,1811.7,2.38742667]
[1746656261306,0.18754279,1811.8,1811.7,2.38742667]
[1746656261679,5.5190787,1811.9,1811.7,2.38742667]
[1746656262012,0.18754279,1811.8,1811.7,2.38742667]
[1746656262214,5.70691578,1811.8,1811.7,2.89998962]
[1746656262394,5.51937299,1811.8,1811.7,2.89998962]
[1746656262590,6.81076095,1811.8,1811.7,2.89998962]
[1746656262807,7.60226095,1811.8,1811.7,2.38733785]
[1746656263120,7.60226095,1811.8,1811.7,0.51256295]
[1746656263295,5.51967765,1811.7,1811.6,0.51265177]
[1746656263500,5.51967765,1811.7,1811.5,8.1867749]
[1746656263710,5.70752785,1811.7,1811.5,1.8747749]
[1746656263893,5.70752785,1811.7,1811.5,2.38737521]
[1746656264309,5.70752785,1811.7,1811.5,2.89997684]
[1746656264695,5.51998233,1811.6,1811.5,2.89997684]
[1746656264906,5.51998233,1811.6,1811.5,1.02520194]
[1746656265119,5.70667967,1811.6,1811.5,0.51260163]
[1746656265532,5.52028705,1811.5,1811.4,5.5391166]
[1746656265734,5.52028705,1811.5,1811.4,1.8747749]
[1746656266095,5.70698439,1811.5,1811.4,2.3872484]
[1746656266299,0.18669734,1811.5,1811.4,2.3872484]
[1746656267434,0.18669734,1811.5,1811.4,1.8747749]
[1746656268530,5.70698439,1811.5,1811.4,1.8747749]
[1746656268737,0.18669734,1811.5,1811.4,1.8747749]
[1746656269037,5.70698439,1811.5,1811.4,1.8747749]
[1746656272434,0.18669734,1811.5,1811.4,1.8747749]
[1746656273312,5.70698439,1811.5,1811.4,1.8747749]
[1746656276352,6.82968106,1811.5,1811.4,1.8747749]
[1746656277157,6.82968106,1811.5,1811.2,2.36056501]
[1746656277158,5.52089224,1811.4,1811.2,4.02486501]
[1746656277354,5.52303103,1810.6,1810.2,6.64714673]
[1746656277654,6.53288495,1810.6,1810.2,5.86294673]
[1746656277951,7.73845847,1810.6,1810.2,5.86294673]
[1746656278158,7.73845847,1810.6,1810.3,1.8747749]
[1746656282660,7.73845847,1810.6,1810.2,5.86294673]
[1746656283976,7.73845847,1810.6,1810.0,4.8747749]
[1746656283977,5.52418254,1810.3,1810.0,4.8747749]
[1746656284340,0.16462139,1810.2,1810.0,4.8747749]
[1746656284839,5.52355301,1810.5,1810.1,0.7524]
[1746656285039,5.68827573,1810.4,1810.2,1.8747749]
[1746656285574,0.7831,1810.3,1809.9,0.4242449]
[1746656285750,6.3071042,1810.3,1809.9,7.82418543]
[1746656285952,6.3071042,1810.3,1809.9,2.2990198]
[1746656286147,5.68891952,1810.2,1809.9,2.2990198]
[1746656286635,0.16462139,1810.2,1809.9,2.2990198]
[1746656286836,0.16462139,1810.2,1810.1,1.8747749]
[1746656287052,0.7926,1810.5,1810.1,8.16163155]
[1746656287053,11.83961077,1810.5,1810.1,8.16163155]
[1746656287263,5.52415646,1810.3,1810.1,1.8747749]
[1746656287640,5.68887285,1810.2,1810.0,1.8747749]
[1746656288078,0.16462139,1810.2,1810.0,1.8747749]
[1746656289584,0.7926,1810.1,1809.9,0.4242449]
[1746656289781,7.39963677,1810.0,1809.9,0.4242449]
[1746656289967,8.35585734,1810.0,1809.9,0.4242449]
[1746656291451,21.54585734,1810.0,1809.9,0.4242449]
[1746656293581,27.82185734,1810.0,1809.9,0.4242449]
[1746656293780,31.55961922,1810.0,1809.9,0.4242449]
[1746656294979,6.28087093,1809.3,1808.9,1.41634457]
[1746656295176,6.276,1809.2,1808.9,6.94443891]
[1746656295377,6.42752702,1809.2,1808.9,6.94443891]
[1746656295591,6.42752702,1809.2,1809.0,5.52787987]
[1746656295769,6.42752702,1809.2,1808.9,8.26793679]
[1746656296290,6.42752702,1809.2,1808.9,6.8515417]
[1746656296495,0.15152702,1809.2,1809.1,5.52761041]
[1746656296688,6.28032335,1809.5,1809.0,9.294589]
[1746656296689,5.52682876,1809.4,1809.0,9.294589]
[1746656296859,0.15183537,1809.3,1809.0,9.294589]
[1746656297060,11.80369393,1809.4,1809.0,9.294589]
[1746656297261,0.15183537,1809.3,1809.0,9.294589]
[1746656297577,17.33064378,1809.4,1809.0,9.294589]
[1746656297776,0.15183537,1809.2,1809.0,9.294589]
[1746656297979,17.33065024,1809.4,1809.0,9.294589]
[1746656298155,0.15183537,1809.1,1809.0,3.7668]
[1746656298356,5.52703315,1809.3,1809.0,3.7668]
[1746656298587,0.15183537,1809.1,1809.0,9.29470987]
[1746656299058,5.52708221,1809.3,1809.0,9.29470987]
[1746656299258,0.15183537,1809.2,1809.0,9.29470987]
[1746656300793,0.15183537,1809.2,1809.0,3.7668]
[1746656300960,5.67919882,1809.2,1809.0,3.7668]
[1746656301159,5.52708221,1809.3,1809.0,3.7668]
[1746656301466,11.80508221,1809.3,1809.0,3.7668]
[1746656301687,0.139722,1809.2,1809.0,3.7668]
[1746656303989,0.139722,1809.2,1809.0,9.29459302]
[1746656305217,0.139722,1809.2,1809.0,9.29452278]
[1746656305359,0.139722,1809.2,1809.1,5.52761041]
[1746656305563,5.52683961,1809.4,1809.0,10.77676754]
[1746656305899,5.52683961,1809.4,1809.1,5.52759155]
[1746656306096,0.13317234,1809.3,1809.0,10.77676754]
[1746656306305,5.52683961,1809.4,1809.0,16.30446037]
[1746656306605,0.13348067,1809.3,1809.0,10.77675218]
[1746656306915,0.13348067,1809.2,1809.0,16.35972091]